bitfinex/quotes_BTCUSD_20241226
["timestamp","ask_amount","ask_price","bid_price","bid_amount"]
[1735235365300,0.00011727,95971.0,95970.0,0.38534409]
[1735235365449,0.00111727,95971.0,95970.0,0.38534409]
[1735235365663,0.00111727,95971.0,95970.0,0.39034409]
[1735235366444,0.00111727,95971.0,95970.0,0.23377175]
[1735235366674,0.00011727,95971.0,95970.0,0.23377175]
[1735235366881,0.00011727,95971.0,95970.0,0.02542808]
[1735235367125,0.00111727,95971.0,95955.0,0.09334086]
[1735235367410,0.20841,95965.0,95955.0,0.09334086]
[1735235368050,0.208398,95970.0,95956.0,0.208428]
[1735235368436,0.208407,95966.0,95956.0,0.208428]
[1735235369052,0.208398,95970.0,95956.0,0.208428]
[1735235371143,0.00011727,95971.0,95960.0,0.208418]
[1735235371382,0.001,95970.0,95950.0,0.1367617]
[1735235371604,0.04292038,95970.0,95957.0,0.208425]
[1735235371815,0.04322289,95970.0,95957.0,0.208425]
[1735235371981,0.203409,95965.0,95953.0,0.208434]
[1735235372188,0.2084,95969.0,95956.0,0.208426]
[1735235374291,0.2084,95969.0,95956.0,0.416854]
[1735235374509,0.2084,95969.0,95960.0,0.208419]
[1735235374705,0.00011727,95971.0,95968.0,0.208401]
[1735235374910,0.00011727,95971.0,95970.0,0.208398]
[1735235375121,0.00011727,95971.0,95970.0,0.31238432]
[1735235376053,0.00011727,95971.0,95970.0,0.46238432]
[1735235376664,0.00011727,95971.0,95970.0,1.30100778]
[1735235376978,2.7e-07,95971.0,95970.0,1.32400778]
[1735235377227,0.29963554,96023.0,95995.0,0.208344]
[1735235377228,0.00130189,96022.0,95995.0,0.208344]
[1735235377434,0.00130189,96021.0,95995.0,0.31233032]
[1735235377648,0.208292,96019.0,95995.0,0.31233032]
[1735235377813,0.00130189,96018.0,95995.0,0.31233032]
[1735235378218,0.208285,96023.0,95995.0,0.31233032]
[1735235378449,0.00068836,95996.0,95995.0,0.54433032]
[1735235378651,0.00068836,95996.0,95995.0,0.74433032]
[1735235378857,0.00068836,95996.0,95995.0,0.84831664]
[1735235379062,3.6e-07,95996.0,95995.0,1.41761664]
[1735235379637,3.6e-07,95996.0,95995.0,1.43999568]
[1735235379860,0.0001712,96043.0,96032.0,0.208263]
[1735235380202,0.00032631,96037.0,96034.0,0.208259]
[1735235380559,0.00032631,96037.0,96034.0,0.416518]
[1735235380758,0.00032631,96037.0,96036.0,0.208255]
[1735235380962,0.00032631,96037.0,96025.0,0.02099867]
[1735235380963,0.208256,96036.0,96025.0,0.02099867]
[1735235381165,0.208256,96036.0,95995.0,0.53025723]
[1735235381166,0.0766,96034.0,95995.0,0.53025723]
[1735235381370,0.208311,96011.0,95996.0,0.10398632]
[1735235381737,0.208302,96015.0,96002.0,0.27729104]
[1735235381971,0.15,96029.0,96003.0,0.0277291]
[1735235382182,0.15,96029.0,96004.0,0.10398632]
[1735235382386,0.15,96029.0,96018.0,0.208292]
[1735235382681,0.208266,96031.0,96015.0,0.2083]
[1735235382880,0.208266,96031.0,96004.0,0.10398632]
[1735235382881,0.0766,96034.0,96010.0,0.1367617]
[1735235383045,0.006,96015.0,96011.0,0.0240748]
[1735235383414,0.15130175,96035.0,96021.0,0.208285]
[1735235383588,0.001,96029.0,96022.0,0.208285]
[1735235383996,0.15,96035.0,96022.0,0.208285]
[1735235384167,0.003,96034.0,96021.0,0.208285]
[1735235384393,0.003,96034.0,96022.0,0.208285]
[1735235384595,0.21256265,96034.0,96012.0,0.10398632]
[1735235384816,0.003,96034.0,96012.0,0.10398632]
[1735235385225,0.003,96034.0,96025.0,0.208278]
[1735235385653,0.00162796,96037.0,96025.0,0.208278]
[1735235385884,0.00032631,96037.0,96012.0,0.10398632]
[1735235386057,0.00032631,96037.0,96013.0,0.0552063]
[1735235386230,0.00032631,96037.0,96022.0,0.208284]
[1735235386411,0.002,96034.0,96022.0,0.208284]
[1735235386803,0.003,96034.0,96022.0,0.208284]
[1735235387423,0.00032631,96037.0,96027.0,0.208274]
[1735235387551,0.001,96034.0,96022.0,0.208284]
[1735235387756,0.001,96034.0,96032.0,0.208262]
[1735235388626,0.003,96034.0,96026.0,0.208275]
[1735235388840,0.003,96034.0,96005.0,0.208322]
[1735235389047,0.20828,96025.0,96012.0,0.208307]
[1735235389455,0.001,96034.0,96006.0,0.12439978]
[1735235389676,0.20926,96034.0,96023.0,0.208282]
[1735235389941,0.208263,96032.0,96019.0,0.20829]
[1735235390760,0.20826,96034.0,96019.0,0.20829]
[1735235390997,0.20926,96034.0,96020.0,0.208289]
[1735235391499,0.208263,96032.0,96020.0,0.208289]
[1735235391714,0.208303,96014.0,96012.0,0.002]
[1735235391927,0.023,96027.0,95981.0,0.23296505]
[1735235392134,0.023,96027.0,95973.0,0.0463]
[1735235392135,0.10398632,96014.0,95988.0,0.13977903]
[1735235392344,0.208338,95998.0,95988.0,0.13977903]
[1735235392754,0.208337,95999.0,95988.0,0.13977903]
[1735235392959,0.416674,95999.0,95988.0,0.13977903]
[1735235393386,0.208329,96002.0,95990.0,0.09418602]
[1735235393558,0.00130211,96001.0,95988.0,0.416716]
[1735235393766,0.00130211,96001.0,95988.0,0.208358]
[1735235393970,0.00130211,96001.0,95992.0,0.208349]
[1735235394747,0.00130211,96001.0,95990.0,0.002]
[1735235394952,0.00130211,96001.0,95991.0,0.208352]
[1735235395149,0.00130211,96001.0,95989.0,0.208355]
[1735235395353,0.208333,96000.0,95992.0,0.001]
[1735235395594,0.20848403,96002.0,95992.0,0.001]
[1735235395772,0.20963311,96001.0,95989.0,0.416711]
[1735235396208,0.20963311,96001.0,95991.0,0.208352]
[1735235396209,0.00130211,96001.0,95991.0,0.208352]
[1735235396418,0.00015503,96002.0,95995.0,0.208343]
[1735235396768,0.00815503,96002.0,95995.0,0.208343]
[1735235397515,0.00815503,96002.0,95993.0,0.208348]
[1735235397868,0.003,96001.0,95993.0,0.208348]
[1735235398474,0.011,96001.0,95993.0,0.208348]
[1735235398877,0.011,96001.0,95998.0,0.208337]
[1735235399380,0.008,96001.0,95998.0,0.208337]
[1735235399812,0.00015503,96002.0,95999.0,0.10398632]
[1735235400298,0.00015503,96002.0,96001.0,0.15]
[1735235400545,0.00015503,96002.0,96001.0,0.25398632]
[1735235401016,0.00015503,96002.0,95998.0,0.002]
[1735235401485,0.00015503,96002.0,95999.0,0.002]
[1735235401486,0.208331,96001.0,95999.0,0.002]
[1735235402456,0.00015503,96002.0,95999.0,0.002]
[1735235402457,0.00015503,96002.0,95999.0,0.210334]
[1735235402667,0.00015503,96002.0,95999.0,0.002]
[1735235402875,0.208331,96001.0,95999.0,0.003]
[1735235403088,0.02215078,96000.0,95999.0,0.001]
[1735235403948,0.00130218,96000.0,95999.0,0.001]
[1735235404150,0.00130218,96000.0,95986.0,0.208363]
[1735235404353,0.00130218,96000.0,95983.0,0.20837]
[1735235404354,0.208346,95994.0,95983.0,0.20837]
[1735235404584,0.001,96000.0,95984.0,0.10398632]
[1735235405002,0.00130207,96000.0,95978.0,0.02085929]
[1735235405208,0.00130207,96000.0,95969.0,0.0817]
[1735235405420,0.208355,95990.0,95979.0,0.208378]
[1735235405624,0.208348,95994.0,95979.0,0.208378]
[1735235406073,0.208348,95994.0,95984.0,0.001]
[1735235406288,0.208348,95994.0,95979.0,0.208378]
[1735235406491,0.208356,95990.0,95979.0,0.208378]
[1735235406703,0.00130226,95989.0,95979.0,0.209378]
[1735235407130,0.20837,95983.0,95979.0,0.001]
[1735235407558,0.0461,95998.0,95979.0,0.001]
[1735235407559,0.25134733,95982.0,95979.0,0.001]
[1735235407771,0.25134733,95982.0,95963.0,0.208412]
[1735235407772,0.208386,95976.0,95963.0,0.208412]
[1735235407981,0.250045,95982.0,95967.0,0.208404]
[1735235408183,0.00130241,95981.0,95967.0,0.208404]
[1735235408632,0.00130241,95981.0,95979.0,0.001]
[1735235408841,0.208376,95980.0,95967.0,0.208404]
[1735235409263,0.208376,95980.0,95967.0,0.209404]
[1735235409466,0.208381,95978.0,95967.0,0.208404]
[1735235409984,0.208383,95977.0,95963.0,0.208412]
[1735235410198,0.208383,95977.0,95967.0,0.208403]
[1735235410613,0.208383,95977.0,95967.0,0.209403]
[1735235410815,0.208383,95977.0,95967.0,0.001]
[1735235411061,0.208383,95977.0,95963.0,0.208412]
[1735235411238,0.2507587,95977.0,95963.0,0.209412]
[1735235411845,0.208374,95981.0,95967.0,0.208403]
[1735235412051,0.0461,95998.0,95967.0,0.208403]
[1735235412052,0.208355,95990.0,95967.0,0.10398632]
[1735235412270,0.208364,95986.0,95972.0,0.208392]
[1735235412509,0.208359,95988.0,95972.0,0.208392]
[1735235412691,0.02213822,95987.0,95976.0,0.208383]
[1735235413040,0.208363,95986.0,95976.0,0.208383]
[1735235413251,0.00130232,95985.0,95976.0,0.208383]
[1735235413455,0.001,95981.0,95972.0,0.208392]
[1735235414063,0.001,95981.0,95967.0,0.10498632]
[1735235414256,0.0427728,95981.0,95967.0,0.001]
[1735235414642,0.2084,95970.0,95967.0,0.001]
[1735235415071,0.20839,95974.0,95967.0,0.001]
[1735235415279,0.20839,95974.0,95961.0,0.208417]
[1735235415873,0.208399,95970.0,95959.0,0.208422]
[1735235416140,0.20839,95974.0,95962.0,0.208415]
[1735235416342,0.208367,95985.0,95963.0,0.10398632]
[1735235416544,0.002,95974.0,95963.0,0.10398632]
[1735235416765,0.208378,95980.0,95972.0,0.001]
[1735235417988,0.208378,95980.0,95963.0,0.10398632]
[1735235418210,0.208386,95976.0,95965.0,0.208409]
[1735235418415,0.208378,95980.0,95965.0,0.208409]
[1735235418839,0.213378,95980.0,95965.0,0.208409]
[1735235419053,0.208386,95976.0,95964.0,0.208411]
[1735235419267,0.208381,95978.0,95964.0,0.208411]
[1735235419461,0.208381,95978.0,95968.0,0.208401]
[1735235420111,0.208381,95978.0,95961.0,0.00060246]
[1735235420324,0.002,95980.0,95965.0,0.001]
[1735235420529,0.002,95980.0,95976.0,0.208385]
[1735235421104,0.002,95980.0,95966.0,0.10398632]
[1735235421263,0.208374,95982.0,95972.0,0.208393]
[1735235421464,0.001,95978.0,95968.0,0.208402]
[1735235421763,0.208363,95987.0,95975.0,0.208385]
[1735235421987,0.0013023,95986.0,95976.0,0.001]
[1735235422161,0.27191007,95987.0,95977.0,0.208383]
[1735235422364,0.208363,95987.0,95977.0,0.208383]
[1735235422589,0.208355,95990.0,95981.0,0.208373]
[1735235422789,0.208355,95990.0,95977.0,0.208383]
[1735235423024,0.208364,95986.0,95976.0,0.001]
[1735235423192,0.208365,95985.0,95974.0,0.208388]
[1735235423423,0.208389,95975.0,95961.0,0.20901946]
[1735235423622,0.208394,95972.0,95968.0,0.002]
[1735235424166,0.20838,95979.0,95965.0,0.208408]
[1735235424381,0.20838,95979.0,95969.0,0.2084]
[1735235424507,0.20837,95983.0,95973.0,0.208389]
[1735235424725,0.0416731,95983.0,95961.0,0.00060246]
[1735235424935,0.001,95972.0,95964.0,0.20841]
[1735235425127,0.001,95972.0,95968.0,0.001]
[1735235425384,0.208396,95971.0,95968.0,0.001]
[1735235425698,0.00130253,95970.0,95968.0,0.001]
[1735235425881,0.2084,95969.0,95968.0,0.001]
[1735235426975,0.003,95972.0,95961.0,0.00060246]
[1735235427194,0.208415,95962.0,95961.0,0.00060246]
[1735235427815,0.31240132,95962.0,95961.0,0.00060246]
[1735235428235,0.48540132,95962.0,95961.0,0.00060246]
[1735235428440,0.77501229,95962.0,95961.0,4.6e-07]
[1735235428652,0.481426,95957.0,95956.0,8.56e-05]
[1735235428859,0.68541232,95957.0,95956.0,8.56e-05]
[1735235429063,0.58541232,95957.0,95956.0,8.56e-05]
[1735235429278,0.208498,95924.0,95922.0,0.01258071]
[1735235429646,0.208498,95924.0,95922.0,0.01270995]
[1735235431109,0.416968,95931.0,95922.0,0.01270995]
[1735235431285,0.002,95924.0,95922.0,0.01270995]
[1735235432362,0.00444672,95923.0,95922.0,0.01470995]
[1735235432595,0.02386949,95923.0,95922.0,0.01470995]
[1735235433348,0.00574984,95923.0,95922.0,0.01470995]
[1735235433779,0.00574984,95923.0,95922.0,0.01270995]
[1735235434115,0.00574984,95923.0,95922.0,0.00070995]
[1735235434522,0.01174984,95923.0,95922.0,0.00170995]
[1735235434722,0.10973616,95923.0,95922.0,0.00070995]
[1735235435171,0.16844912,95923.0,95922.0,0.00070995]
[1735235435373,0.39834912,95923.0,95922.0,0.00070995]
[1735235435581,0.420046,95923.0,95922.0,0.00070995]
[1735235435993,0.419046,95923.0,95922.0,0.00070995]
[1735235436426,0.565946,95923.0,95922.0,0.00070995]
[1735235436630,0.59451926,95923.0,95922.0,0.00070995]
[1735235437086,0.231524,95912.0,95911.0,0.0002]
[1735235437254,0.33551032,95912.0,95911.0,0.0003542]
[1735235437454,0.34434894,95912.0,95911.0,0.0003542]
[1735235437652,0.21367514,95912.0,95911.0,0.0003542]
[1735235438327,0.22267514,95912.0,95911.0,0.0013542]
[1735235438502,0.22267514,95912.0,95911.0,0.0003542]
[1735235439146,0.18210717,95912.0,95885.0,0.00495209]
[1735235439299,0.208537,95906.0,95893.0,0.00015509]
[1735235439507,0.208561,95895.0,95893.0,0.00015509]
[1735235440123,0.00513958,95894.0,95893.0,0.00015509]
[1735235440518,0.00644312,95894.0,95893.0,0.00015509]
[1735235441577,0.13342944,95894.0,95893.0,0.00015509]
[1735235441789,0.26062944,95894.0,95893.0,0.00015509]
[1735235441969,0.208607,95874.0,95867.0,0.00542895]
[1735235442173,0.31259332,95874.0,95873.0,0.00060315]
[1735235442387,0.34385265,95874.0,95873.0,0.00060315]
[1735235442598,0.31872532,95874.0,95873.0,0.00060315]
[1735235443006,0.39672532,95874.0,95873.0,0.00060315]
[1735235443215,0.42856394,95874.0,95873.0,0.00060315]
[1735235443801,0.4622183,95874.0,95873.0,0.00060315]
[1735235443998,0.43037968,95874.0,95873.0,0.00060315]
[1735235444215,0.43037968,95874.0,95867.0,0.0002321]
[1735235444416,0.20862,95868.0,95835.0,0.054729]
[1735235444640,0.208646,95856.0,95840.0,0.41748417]
[1735235444916,0.00130411,95855.0,95849.0,0.00542856]
[1735235445147,0.00721776,95855.0,95849.0,0.00542856]
[1735235445325,0.00591365,95855.0,95850.0,0.417317]
[1735235445729,0.00130395,95869.0,95859.0,0.208639]
[1735235446184,0.20991294,95873.0,95859.0,0.208639]
[1735235446636,0.208606,95875.0,95849.0,0.00542856]
[1735235446841,0.208606,95875.0,95860.0,0.208636]
[1735235447015,0.0208606,95874.0,95860.0,0.208636]
[1735235447246,0.208609,95873.0,95860.0,0.208636]
[1735235447458,0.208609,95873.0,95864.0,0.208627]
[1735235447459,0.008,95873.0,95864.0,0.208627]
[1735235447658,0.008,95873.0,95866.0,0.208623]
[1735235448292,0.008,95873.0,95856.0,0.08]
[1735235448293,0.208598,95879.0,95862.0,0.208631]
[1735235448494,0.002,95869.0,95862.0,0.208631]
[1735235448769,0.008,95873.0,95866.0,0.208623]
[1735235448905,0.008,95873.0,95870.0,0.208614]
[1735235449114,0.008,95873.0,95870.0,0.208615]
[1735235449720,0.00130373,95883.0,95870.0,0.208615]
[1735235449927,0.208589,95882.0,95870.0,0.208615]
[1735235450122,0.25043687,95882.0,95868.0,0.208618]
[1735235450377,0.208594,95880.0,95868.0,0.208618]
[1735235450788,0.208578,95888.0,95875.0,0.208604]
[1735235450966,0.20825509,95888.0,95875.0,0.208604]
[1735235451161,0.20825509,95888.0,95871.0,0.208613]
[1735235451387,0.002,95882.0,95871.0,0.208613]
[1735235451597,0.002,95882.0,95872.0,0.0410913]
[1735235451797,0.001,95880.0,95873.0,0.208609]
[1735235452227,0.001,95880.0,95865.0,0.1993]
[1735235452556,0.001,95880.0,95877.0,0.417198]
[1735235452727,0.001,95880.0,95879.0,0.208596]
[1735235453161,0.208549,95901.0,95890.0,0.208571]
[1735235453338,0.208497,95925.0,95890.0,0.208571]
[1735235453571,0.208537,95907.0,95892.0,0.208567]
[1735235453789,0.208544,95903.0,95890.0,0.208571]
[1735235454427,0.20906092,95903.0,95890.0,0.208571]
[1735235454631,0.00051692,95903.0,95890.0,0.208571]
[1735235455050,0.20906192,95903.0,95890.0,0.208571]
[1735235455248,0.04199024,95902.0,95890.0,0.208571]
[1735235455813,0.04199024,95902.0,95890.0,0.417143]
[1735235456212,0.00599526,95901.0,95890.0,0.417143]
[1735235456641,0.00599526,95901.0,95890.0,0.208571]
[1735235456847,0.00599526,95901.0,95895.0,0.208561]
[1735235457066,0.00599526,95901.0,95899.0,0.208551]
[1735235457276,0.001,95901.0,95899.0,0.208551]
[1735235458471,0.001,95901.0,95899.0,0.002]
[1735235458869,0.00602269,95900.0,95895.0,0.001]
[1735235459075,0.42312369,95900.0,95899.0,0.002]
[1735235459279,0.48645879,95900.0,95899.0,0.002]
[1735235459700,0.42312369,95900.0,95899.0,0.002]
[1735235460115,0.42312369,95900.0,95885.0,0.208583]
[1735235460312,0.208554,95898.0,95885.0,0.208583]
[1735235460552,0.00130353,95897.0,95885.0,0.208583]
[1735235460926,0.00732622,95897.0,95885.0,0.208583]
[1735235461134,0.00732622,95897.0,95882.0,0.208589]
[1735235461135,0.208561,95895.0,95882.0,0.208589]
[1735235461340,0.208561,95895.0,95882.0,0.417178]
[1735235461686,0.00602269,95894.0,95886.0,0.208579]
[1735235461890,0.00602269,95894.0,95885.0,0.001]
[1735235462112,0.00130351,95899.0,95885.0,0.001]
[1735235462282,0.208588,95883.0,95872.0,0.208611]
[1735235462488,0.0013037,95882.0,95869.0,0.08]
[1735235462690,0.208559,95896.0,95866.0,0.02112987]
[1735235462870,0.208579,95887.0,95866.0,0.22975287]
[1735235463069,0.0013037,95886.0,95870.0,0.208615]
[1735235463268,0.008,95899.0,95888.0,0.208575]
[1735235463652,0.00600311,95898.0,95888.0,0.208575]
[1735235463856,0.00600311,95898.0,95879.0,0.0486]
[1735235463857,0.008,95896.0,95879.0,0.0486]
[1735235464084,0.008,95896.0,95893.0,0.208565]
[1735235464307,0.00068832,95903.0,95893.0,0.208565]
[1735235464704,0.00601001,95902.0,95893.0,0.208565]
[1735235465937,0.21455701,95902.0,95891.0,0.208568]
[1735235466115,0.21455701,95902.0,95886.0,0.20858]
[1735235466316,0.20855,95900.0,95893.0,0.002]
[1735235466852,0.20855,95900.0,95886.0,0.20858]
[1735235467095,0.208554,95898.0,95893.0,0.002]
[1735235467360,0.208554,95898.0,95886.0,0.20858]
[1735235467904,0.00601001,95897.0,95886.0,0.20858]
[1735235468173,0.00601001,95897.0,95890.0,0.208571]
[1735235468672,0.00601001,95896.0,95890.0,0.208571]
[1735235468938,0.00601001,95896.0,95893.0,0.001]
[1735235469201,0.208549,95901.0,95887.0,0.208578]
[1735235469458,0.00601001,95895.0,95887.0,0.208578]
[1735235469667,0.004,95897.0,95887.0,0.208578]
[1735235469896,0.001,95897.0,95891.0,0.208569]
[1735235470134,0.001,95897.0,95891.0,0.208568]
[1735235470388,0.001,95897.0,95893.0,0.002]
[1735235470648,0.001,95897.0,95889.0,0.208574]
[1735235470900,0.001,95897.0,95882.0,0.0210484]
[1735235471165,0.208548,95901.0,95883.0,0.10398632]
[1735235471421,0.00601001,95896.0,95883.0,0.10398632]
[1735235471933,0.00601001,95895.0,95887.0,0.210577]
[1735235472181,0.208563,95894.0,95884.0,0.208585]
[1735235472604,0.208571,95891.0,95882.0,0.0210484]
[1735235473003,0.208571,95891.0,95883.0,0.001]
[1735235473165,0.00601001,95890.0,95882.0,0.0210484]
[1735235474196,0.208574,95889.0,95876.0,0.09318602]
[1735235474399,0.2086,95877.0,95876.0,0.09318602]
[1735235474957,0.208603,95876.0,95875.0,0.13977903]
[1735235475719,0.21464451,95876.0,95875.0,0.13977903]
[1735235476284,0.00604151,95876.0,95867.0,0.00541601]
[1735235476485,0.00604151,95876.0,95875.0,0.10398632]
[1735235476892,0.208557,95897.0,95875.0,0.10398632]
[1735235477100,0.208575,95889.0,95874.0,0.358607]
[1735235477321,0.00130368,95888.0,95874.0,0.15]
[1735235477541,0.00068832,95903.0,95873.0,0.09349246]
[1735235477542,0.00130365,95895.0,95873.0,0.09349246]
[1735235477746,0.208603,95876.0,95873.0,0.09349246]
[1735235477951,0.417206,95876.0,95873.0,0.09349246]
[1735235478163,0.208607,95874.0,95873.0,0.09349246]
[1735235478363,0.208607,95874.0,95869.0,0.13977903]
[1735235478364,0.208607,95874.0,95869.0,0.09349246]
[1735235478793,0.00541427,95873.0,95869.0,0.09349246]
[1735235479201,0.208591,95882.0,95869.0,0.30210946]
[1735235479446,0.208591,95882.0,95869.0,0.208617]
[1735235479598,0.00541427,95881.0,95875.0,8.57e-05]
[1735235479800,0.208594,95880.0,95875.0,8.57e-05]
[1735235480230,0.417196,95878.0,95875.0,8.57e-05]
[1735235480401,0.0013038,95877.0,95875.0,8.57e-05]
[1735235480588,0.208602,95876.0,95875.0,8.57e-05]
[1735235481011,0.21401627,95876.0,95875.0,8.57e-05]
[1735235481725,0.00541427,95876.0,95875.0,8.57e-05]
[1735235482188,0.208593,95881.0,95875.0,8.57e-05]
[1735235482429,0.00541427,95876.0,95875.0,8.57e-05]
[1735235482635,0.003,95876.0,95875.0,8.57e-05]
[1735235482966,0.00841427,95876.0,95875.0,0.0010857]
[1735235483226,0.00541427,95876.0,95875.0,0.0010857]
[1735235483489,0.00671802,95876.0,95875.0,0.0010857]
[1735235483739,0.00671802,95876.0,95875.0,8.57e-05]
[1735235484169,0.417208,95875.0,95867.0,0.00050171]
[1735235484391,0.208593,95881.0,95861.0,0.02126383]
[1735235484392,0.208593,95881.0,95865.0,0.208626]
[1735235484647,0.208593,95881.0,95870.0,0.09126269]
[1735235484890,0.208596,95879.0,95865.0,0.21404869]
[1735235485120,0.208596,95879.0,95875.0,0.001]
[1735235485314,0.003,95876.0,95875.0,0.001]
[1735235485541,0.003,95876.0,95865.0,0.21404869]
[1735235485749,0.00541427,95878.0,95865.0,0.21404869]
[1735235485750,0.208596,95879.0,95865.0,0.21404869]
[1735235485952,0.00541427,95875.0,95866.0,0.10398632]
[1735235486173,0.002,95881.0,95866.0,0.10398632]
[1735235486376,0.001,95879.0,95871.0,0.208611]
[1735235486548,0.208608,95874.0,95865.0,0.00542269]
[1735235486747,0.208611,95872.0,95865.0,0.00542269]
[1735235487354,0.208615,95870.0,95865.0,0.00542269]
[1735235487771,0.20862,95868.0,95865.0,0.00542269]
[1735235488021,0.208624,95866.0,95865.0,0.00542269]
[1735235488331,0.31261032,95866.0,95865.0,0.00542269]
[1735235488506,0.208637,95860.0,95848.0,0.13977903]
[1735235488716,0.208637,95860.0,95859.0,0.00020987]
[1735235489308,0.21403567,95860.0,95849.0,0.00463019]
[1735235489556,0.208648,95856.0,95849.0,0.00463019]
[1735235490000,0.208658,95851.0,95849.0,0.00463019]
[1735235490466,0.21404667,95855.0,95831.0,0.34878303]
[1735235490467,0.208689,95836.0,95835.0,0.09361482]
[1735235490697,0.208685,95838.0,95835.0,0.09361482]
[1735235490913,0.208685,95838.0,95835.0,0.09903593]
[1735235491142,0.00530188,95837.0,95835.0,0.09903593]
[1735235491596,0.00530188,95837.0,95835.0,0.00542111]
[1735235491867,0.00530188,95836.0,95835.0,0.00542111]
[1735235492142,0.208692,95835.0,95831.0,0.000304]
[1735235492598,0.417384,95835.0,95831.0,0.000304]
[1735235492880,0.208696,95833.0,95831.0,0.000304]
[1735235493117,0.00530188,95834.0,95832.0,0.0001557]
[1735235493326,0.001,95835.0,95833.0,0.208696]
[1735235493541,0.001,95835.0,95834.0,0.1273]
[1735235493746,0.001,95835.0,95834.0,0.38128632]
[1735235494379,0.001,95835.0,95834.0,0.58128632]
[1735235494558,0.208618,95869.0,95855.0,0.208648]
[1735235494811,0.00130397,95868.0,95851.0,0.208655]
[1735235494986,0.417219,95873.0,95859.0,0.208639]
[1735235495222,0.00130388,95872.0,95859.0,0.208639]
[1735235495651,0.208594,95880.0,95859.0,0.208639]
[1735235496016,0.208602,95876.0,95859.0,0.208639]
[1735235496353,0.00130385,95875.0,95859.0,0.208639]
[1735235496563,0.00130385,95875.0,95859.0,0.209639]
[1735235496688,0.20862,95868.0,95859.0,0.209639]
[1735235497106,0.208612,95872.0,95859.0,0.209639]
[1735235497368,0.00130387,95871.0,95859.0,0.209639]
[1735235497558,0.208602,95876.0,95859.0,0.209639]
[1735235497711,0.208611,95872.0,95859.0,0.209639]
[1735235497911,0.208602,95876.0,95859.0,0.209639]
[1735235498157,0.208593,95881.0,95859.0,0.209639]
[1735235498384,0.2086,95877.0,95859.0,0.209639]
[1735235498578,0.0755,95886.0,95859.0,0.209639]
[1735235498781,0.00130382,95889.0,95859.0,0.31362532]
[1735235499011,0.20988072,95888.0,95859.0,0.31362532]
[1735235499403,0.208588,95883.0,95859.0,0.31362532]
[1735235499600,0.00130374,95882.0,95859.0,0.31362532]
[1735235499830,0.208588,95883.0,95859.0,0.31362532]
[1735235500044,0.208597,95879.0,95859.0,0.209639]
[1735235500250,0.00915495,95860.0,95859.0,0.209639]
[1735235500865,0.00915495,95860.0,95859.0,0.208639]
[1735235501279,0.01015495,95860.0,95859.0,0.210639]
[1735235501483,0.00915495,95860.0,95859.0,0.208639]
[1735235501873,0.01015495,95860.0,95859.0,0.210639]
[1735235502078,0.00115495,95860.0,95859.0,0.208639]
[1735235502328,0.00215495,95860.0,95859.0,0.210639]
[1735235502533,0.00315495,95860.0,95859.0,0.31762532]
[1735235502738,0.00115495,95860.0,95859.0,0.31462532]
[1735235502918,0.00015495,95860.0,95859.0,0.31262532]
[1735235503172,0.00015495,95860.0,95859.0,0.31462532]
[1735235503720,0.00015495,95860.0,95859.0,0.31262532]
[1735235503931,0.00115495,95860.0,95859.0,0.31462532]
[1735235504127,0.00215495,95860.0,95859.0,0.31662532]
[1735235504329,0.00215495,95860.0,95859.0,0.212639]
[1735235504551,0.00215495,95860.0,95859.0,0.004]
[1735235504751,0.00315495,95860.0,95859.0,0.006]
[1735235505080,0.00232635,95860.0,95859.0,0.002]
[1735235505511,0.00232635,95860.0,95859.0,0.001]
[1735235505934,0.0022724,95860.0,95859.0,0.001]
[1735235506167,0.0012724,95860.0,95857.0,0.417286]
[1735235506396,0.0012724,95860.0,95859.0,0.211639]
[1735235507102,0.0012724,95860.0,95859.0,0.210639]
[1735235507668,0.0002724,95860.0,95859.0,0.208639]
[1735235508076,0.0012724,95860.0,95859.0,0.210639]
[1735235508491,0.0022724,95860.0,95859.0,0.210639]
[1735235508705,0.0022724,95860.0,95859.0,0.211639]
[1735235509115,0.0022724,95860.0,95859.0,0.003]
[1735235509486,0.0012724,95860.0,95858.0,0.10398632]
[1735235509709,0.0012724,95860.0,95859.0,0.31462532]
[1735235509915,0.0022724,95860.0,95859.0,0.46562532]
[1735235510483,0.0012724,95860.0,95859.0,0.46462532]
[1735235510931,0.0002724,95860.0,95859.0,0.46262532]
[1735235511272,0.0002724,95860.0,95859.0,0.46462532]
[1735235511476,0.0012724,95860.0,95859.0,0.46462532]
[1735235511687,0.0002724,95860.0,95859.0,0.56661164]
[1735235511886,0.0012724,95860.0,95859.0,0.56861164]
[1735235512109,0.0022724,95860.0,95859.0,0.57918383]
[1735235512308,0.0022724,95860.0,95859.0,0.47519751]
[1735235512537,0.0012724,95860.0,95859.0,0.47519751]
[1735235512680,0.0022724,95860.0,95859.0,0.47619751]
[1735235513255,0.0022724,95860.0,95859.0,0.46562532]
[1735235513464,0.0022724,95860.0,95859.0,0.361639]
[1735235514259,0.0012724,95860.0,95859.0,0.001]
[1735235514674,0.0012724,95860.0,95859.0,0.002]
[1735235514846,0.0012724,95860.0,95859.0,0.001]
[1735235515100,0.0002724,95860.0,95859.0,0.002]
[1735235515307,0.0012724,95860.0,95859.0,0.003]
[1735235515513,0.0012724,95860.0,95859.0,0.001]
[1735235515718,0.0012724,95860.0,95859.0,0.003]
[1735235515927,0.0012724,95860.0,95859.0,0.002]
[1735235516136,0.0012724,95860.0,95859.0,0.003]
[1735235516346,0.04456066,95860.0,95859.0,0.003]
[1735235516553,0.04893313,95860.0,95859.0,0.001]
[1735235516764,0.04893313,95860.0,95844.0,0.09361482]
[1735235516970,0.21428187,95860.0,95859.0,0.0010857]
[1735235517157,0.2089094,95860.0,95859.0,0.0010857]
[1735235517390,0.21425033,95860.0,95859.0,0.0010857]
[1735235517942,0.21625033,95860.0,95859.0,0.0010857]
[1735235518145,0.21425033,95860.0,95859.0,0.0010857]
[1735235518348,0.25759829,95860.0,95859.0,8.57e-05]
[1735235518573,0.26459829,95860.0,95859.0,8.57e-05]